Cogmind - Beta 17 @@@ ROGUE MODE // 2026.07.18 @ 14:12:00 Player: winnking222 Result: Destroyed by Y-54 Guardian with Flak Gun Performance ------------- Evolutions (4) 2000 Regions Visited (11) 2200 Robots Destroyed (181) 905 Value Destroyed (7237) 7237 Prototype IDs (39) 780 Alien Tech Used (0) 0 Bonus (16262) 16262 TOTAL SCORE: 29384 Bonus ------- High Alert Combat Kills 1370 Follower Combat Kills 1394 Prayed to X0-1V1 5000 Major X0-1V1 Interference 7350 Entered Garrisons 400 Used RIF Installer 500 Aligned with FarCom 300 Friendly Fire -52 Cogmind --------- Core Integrity 0/590 Matter 300/300 Energy 400/400 System Corruption 15% Temperature Warm (198) Movement Walking (329) Ox2 Location -6/Garrison Parts ------- > --- POWER (2) -------- (None) > --- PROPULSION (5) --- Carbon-Gravmag Exoskeleton > --- UTILITY (6) ------ Armored Scrap Engine Large Storage Unit Relay Coupler [Sentry] (4) X0-1V1's Piety Tracker > --- WEAPON (2) ------- Wave Gun Wave Gun > --- INVENTORY (15) --- Improved Heat Sink Improved Cooling System Huge Storage Unit Medium Matter Pod (100) Structural Scanner Improved Light Armor Plating Relay Coupler [NC] (30) Relay Coupler [Proto] (9) Relay Coupler [Proto] (9) Remote Datajack Remote Datajack Powered Hammer Peak State ------------ > --- POWER ------------ Light Nuclear Core Nuclear-Deuterium Core > --- PROPULSION ------- Carbon-fiber Leg Carbon-fiber Leg Flexi-carbon Leg Carbon-Gravmag Exoskeleton > --- UTILITY ---------- Armored Scrap Engine Large Storage Unit Improved Medium Armor Plating X0-1V1's Piety Tracker > --- WEAPON ----------- KE Penetrator Railgun Cycling Thermic Construct/G > --- INVENTORY -------- Improved Treads Cryofiber Web Advanced Heat Sink Huge Storage Unit Medium Matter Pod Structural Scanner Relay Coupler [NC] Relay Coupler [NC] Relay Coupler [Grunt] Relay Coupler [Sentry] Relay Coupler [Proto] Relay Coupler [Proto] KE Penetrator Hammer Deploy-a-Sentry [Rating: 94] Favorites ----------- Power Constructs Engine Heavy Ion Engine Power Core Constructs Reactor Cold Fusion Reactor Propulsion Light Treads Treads Light Treads Leg Constructs Wheel Wheel Flight Unit VTOL Module Utility X0-1V1's Piety Tracker Device X0-1V1's Piety Tracker Storage Large Storage Unit Hackware Relay Coupler [NC] Protection Light Armor Plating Weapon Constructs Energy Gun Constructs Energy Cannon Plasma Cannon Ballistic Gun KE Penetrator Ballistic Cannon Heavy Linear Accelerator Launcher Grenade Launcher Special Weapon Remote Datajack Impact Weapon Hammer Special Melee Weapon Improved Datajack Build | -11 -10 -10 -10 -9 -8 -8 -8 -6 -6 -6 -6 ------- Run | Yrd Mat Min Exi Min Mat Sto Rec Fac Gar Fac Gar Slots Evolved 8 | . . . . . 4 . . 4 . . . Power . | . . . . . . . . . . . . Propulsion 3 | . . . . . 3 . . . . . . Utility 4 | . . . . . 1 . . 3 . . . Weapon 1 | . . . . . . . . 1 . . . Parts Attached 127 | 7 11 . 1 . 23 28 4 4 26 12 11 Power 16 | 1 2 . . . 4 5 . . 2 1 1 Engine 12 | 1 2 . . . 3 5 . . . . 1 Core 3 | . . . . . 1 . . . 2 . . Reactor 1 | . . . . . . . . . . 1 . Propulsion 45 | 2 3 . . . 8 11 3 1 13 2 2 Treads 25 | 2 . . . . 4 10 3 1 4 . 1 Leg 7 | . . . . . 2 1 . . 3 1 . Wheel 7 | . 3 . . . 2 . . . . 1 1 Hover . | . . . . . . . . . . . . Flight 6 | . . . . . . . . . 6 . . Utility 28 | 2 3 . . . 3 4 1 2 2 7 4 Device 12 | 1 1 . . . . 2 1 2 1 3 1 Storage 3 | 1 2 . . . . . . . . . . Processor . | . . . . . . . . . . . . Hackware 5 | . . . . . . . . . . 3 2 Protection 8 | . . . . . 3 2 . . 1 1 1 Artifact . | . . . . . . . . . . . . Weapon 38 | 2 3 . 1 . 8 8 . 1 9 2 4 Energy Gun 10 | . 1 . . . 3 3 . . . . 3 Energy Cannon 5 | . . . 1 . 1 2 . 1 . . . Ballistic Gun 15 | 2 . . . . 3 3 . . 7 . . Ballistic Cannon 1 | . . . . . . . . . 1 . . Launcher 3 | . 1 . . . 1 . . . 1 . . Special Weapon 1 | . . . . . . . . . . 1 . Impact Weapon 2 | . 1 . . . . . . . . . 1 Slashing Weapon . | . . . . . . . . . . . . Piercing Weapon . | . . . . . . . . . . . . Special Melee Weapon 1 | . . . . . . . . . . 1 . Unidentified Prototypes 10 | . 1 . . . 3 4 . 1 . 1 . Parts Lost 60 | . 4 . . . 7 9 1 . 20 4 15 Power 14 | . 2 . . . 1 2 . . 3 2 4 Propulsion 23 | . 1 . . . 4 2 1 . 10 . 5 Utility 12 | . . . . . 2 3 . . 2 1 4 Weapon 11 | . 1 . . . . 2 . . 5 1 2 Highest Loss Streak 6 | . 2 . . . 3 3 1 . 6 2 4 To Critical Strikes . | . . . . . . . . . . . . Average Backups 13 | 5 10 13 15 12 12 19 19 16 10 12 11 Power . | . . . 2 3 1 1 2 2 . . . Propulsion 1 | 3 4 4 3 2 . 1 . . . 1 1 Utility 5 | . 2 4 4 4 5 4 5 5 7 9 7 Weapon 4 | . 2 5 4 3 5 12 11 9 2 2 1 Tool/Special . | . . . . . . . . . . . . Unused Backups 36 | . . . 3 . 5 4 3 4 5 3 9 Power 3 | . . . . . 2 . . . 1 . . Propulsion 5 | . . . 2 . 2 . . . . . 1 Utility 13 | . . . . . . . . . 3 3 7 Weapon 14 | . . . 1 . 1 4 3 4 1 . . Tool/Special 1 | . . . . . . . . . . . 1 Average Slot Usage (%) 82 | . 99 85 85 91 85 96 90 88 75 70 67 Engine 9 | . 13 14 14 19 14 16 18 12 3 4 . Core 1 | . . . . . 1 . . . 5 . . Reactor 1 | . . . . . . . . . . 3 6 Treads 14 | . 17 . . . 8 37 44 36 12 . 1 Leg 2 | . . . . . 1 1 . . 4 6 2 Wheel 5 | . 10 14 14 14 15 2 . . . 7 4 Flight 1 | . . . . . . . . . 7 . . Device 13 | . 14 14 14 14 9 9 9 19 13 11 18 Storage 8 | . 14 14 14 14 9 9 9 6 5 5 5 Hackware 1 | . . . . . . . . . . 4 5 Protection 3 | . . . . . 8 7 . . 2 4 . Energy Gun 2 | . 4 . . . . . . 1 3 2 4 Energy Cannon 2 | . . . . 14 4 3 9 10 . . . Ballistic Gun 8 | . 17 14 13 . 12 6 . . 11 6 4 Impact Weapon 1 | . 5 14 14 6 . . . . 1 . . Peak Build Rating 94 | 7 20 19 22 25 37 46 45 70 88 94 89 Average Rating 50 | 5 9 19 20 23 30 36 40 66 65 84 78 On Entrance 37 | . 7 19 19 22 25 33 45 42 70 83 81 Avg Prop Armor Cover (%) 11 | . 13 . . . 7 14 . 5 6 11 16 Naked Turns . | . . . . . . . . . . . . Heaviest Build 113 | 13 91 89 89 40 105 107 105 113 110 63 55 Greatest Support 124 | 40 40 10 10 10 60 102 124 104 104 50 36 Greatest Overweight (x) 10 | 3 8 8 8 3 10 10 2 1 5 2 2 Average Overweight (x) 1 | . 4 8 7 2 2 2 . . . 1 . Largest Inventory Capacity 25 | 8 25 25 25 15 25 25 25 25 25 15 15 Average Capacity 19 | 7 23 25 24 15 20 25 25 25 16 15 15 Most Carried 25 | 7 14 13 20 15 20 25 25 21 15 15 14 Average Carried 14 | 5 10 13 16 15 15 22 22 18 12 14 12 Final Capacity 25 | 8 25 25 15 15 25 25 25 25 15 15 15 Final Carried 24 | 6 13 13 15 15 20 24 23 15 15 13 12 Scrap Engine Consumption 126 | . . . . . . . . 11 52 28 35 Constructs Created 15 | . . . . . . . . 2 6 2 5 Constructs Modified 43 | . . . . . . . . 2 19 14 8 Class Distribution -------------------- 39% | Mutant 26% | Scavenger-Mutant 9% | Tank 8% | Construct 6% | Bothacker-Construct 4% | Bothacker-Mutant 3% | Scavenger-Tank Dominant Class ---------------- Mutant | -10/Materials Mutant | -10/Mines Mutant | -10/Exiles Mutant | -9/Mines Mutant | -8/Materials Scavenger-Mutant | -8/Storage Mutant | -8/Recycling Scavenger-Mutant | -6/Factory Scavenger-Mutant | -6/Garrison Bothacker-Construct | -6/Factory Construct | -6/Garrison Resources | -11 -10 -10 -10 -9 -8 -8 -8 -6 -6 -6 -6 ----------- Run | Yrd Mat Min Exi Min Mat Sto Rec Fac Gar Fac Gar Matter Collected 5795 | 318 236 . . 83 803 1228 67 10 1154 437 1459 Remotely . | . . . . . . . . . . . . Salvage Created 7732 | 178 679 . . 7 1203 1506 421 129 1061 1127 1421 Parts 371 | 23 40 . . . 67 82 12 5 45 46 51 Haulers Intercepted 11 | . 2 . . . 5 4 . . . . . Recyclers Shooed 3 | . . . . . . 1 2 . . . . Parts Field Recycled . | . . . . . . . . . . . . Retrieved Matter . | . . . . . . . . . . . . Parts Self-Destructed . | . . . . . . . . . . . . Prevented . | . . . . . . . . . . . . Parts Restored . | . . . . . . . . . . . . Kills | -11 -10 -10 -10 -9 -8 -8 -8 -6 -6 -6 -6 ------- Run | Yrd Mat Min Exi Min Mat Sto Rec Fac Gar Fac Gar Combat Hostiles Destroyed 145 | . 15 . . 2 24 31 4 2 27 14 26 Melee 3 | . 2 . . . . . . . . . 1 Guns 81 | . 7 . . . 18 8 . . 22 10 16 Cannons 17 | . . . . . 2 8 4 . . 3 . AOE 24 | . 3 . . 2 4 13 . . 2 . . Classes Destroyed 19 | 1 5 . . 1 2 3 3 . 2 1 1 Worker 4 | . 1 . . . 2 . . . . 1 . Builder 1 | . 1 . . . . . . . . . . Tunneler 9 | 9 . . . . . . . . . . . Hauler 11 | . 2 . . . 5 4 . . . . . Recycler 6 | . . . . . . . 3 . . 3 . Drone 1 | . . . . . . . 1 . . . . Watcher 8 | . 2 . . . 3 2 . . . . 1 Swarmer 27 | . . . . . 7 . . . 11 2 7 Cutter 3 | . . . . . . . . . 3 . . Grunt 69 | . 15 . . . 14 18 . . 6 5 11 Brawler 4 | . . . . . . 2 . . 1 1 . Duelist 1 | . . . . . . . . . . 1 . Protector 1 | . . . . . . 1 . . . . . Sentry 25 | . . . . . 3 9 2 2 5 1 3 Hunter 3 | . . . . . . 1 . . . 2 . Programmer 5 | . . . . . . . . . 1 2 2 Scrapper 1 | . . . . . . . 1 . . . . Assembled 2 | . . . . 2 . . . . . . . Fireman 3 | . . . . . . . . . . . 3 Best Kill Streak 9 | 2 5 . . 2 5 9 3 1 5 5 5 Combat Bots Only 9 | . 3 . . 2 4 9 1 1 5 3 5 Max Kills in Single Turn 4 | 1 3 . . 2 3 4 1 1 2 2 2 Gunslinging 1 | . . . . . . . . . 1 . . Exploded 4 | . 2 . . 2 2 4 . . 1 . . Melee 1 | . 1 . . . . . . . . . 1 Uniques/NPCs Destroyed . | . . . . . . . . . . . . Combat | -11 -10 -10 -10 -9 -8 -8 -8 -6 -6 -6 -6 -------- Run | Yrd Mat Min Exi Min Mat Sto Rec Fac Gar Fac Gar Hostile Shots Fired 1365 | . 79 . . 5 143 127 41 68 336 151 415 Missed 412 | . 19 . . 2 37 38 8 20 110 58 120 Hits 953 | . 60 . . 3 106 89 33 48 226 93 295 Melee 27 | . . . . . . . 24 . 3 . . Projectile 926 | . 60 . . 3 106 89 9 48 223 93 295 AOE 5 | . . . . . . . . . 2 1 2 Critical Strikes 22 | . 1 . . . 2 1 1 . 4 4 9 Part Disruptions 1 | . . . . . . . . . . . 1 Damage Taken 12563 | . 744 . . 39 1499 1414 224 377 3063 1500 3703 Core 1712 | . 146 . . 24 204 142 8 57 443 152 536 Absorbed by Shields 455 | . . . . . . . . . 94 187 174 Regen/Repaired (Parts) 1753 | . . . . . . . . . 903 313 537 Core Remaining (%) 74 | 100 . . . 40 . . 84 . . . . Volleys Fired 630 | 24 45 . 4 3 97 119 28 10 115 90 95 Largest 3 | 2 2 . 1 1 2 2 1 2 3 3 2 Hottest 162 | 40 70 . 60 30 120 81 80 160 126 118 162 Shots Fired 987 | 48 83 . 4 3 188 146 28 20 195 116 156 Gun 802 | 48 77 . 3 . 172 78 . 2 189 84 149 Cannon 142 | . . . 1 . 10 59 28 18 2 24 . Launcher 28 | . 6 . . 3 6 9 . . 4 . . Special 15 | . . . . . . . . . . 8 7 Kinetic 630 | 48 51 . 3 . 151 75 . . 132 91 79 Thermal 292 | . 26 . 1 . 31 62 28 20 59 17 48 Explosive 28 | . 6 . . 3 6 9 . . 4 . . Electromagnetic 22 | . . . . . . . . . . . 22 Robot Hit Streak 26 | 10 11 . . . 16 26 14 18 25 25 14 Robot Miss Streak 5 | 4 2 . . . 5 2 3 1 4 3 3 Penetration Max 1 | . . . . . . . . . 1 1 1 Secondary Targets 11 | . 1 . . . 3 1 . . 4 . 2 Max Gunslinging Chain 1 | . 1 . . . 1 1 . . 1 . 1 Shots Hit Robots 719 | 30 80 . . . 134 115 22 15 106 90 127 Core Hits 361 | 16 30 . . 2 56 69 9 1 95 40 43 Critical Kills 9 | 1 2 . . . . 3 . 1 . 1 1 Critical Parts Destroyed 9 | . 1 . . . . . . . 2 . 6 Critical Strikes 25 | 1 6 . . . 1 3 . 1 3 1 9 Burn 7 | . 3 . . . 1 . . . 1 . 2 Meltdown 4 | . . . . . . 3 . 1 . . . Destroy 5 | 1 1 . . . . . . . . 1 2 Smash 9 | . 2 . . . . . . . 2 . 5 Melee Attacks 90 | . 26 . . . . 3 . . 17 19 25 Impact 71 | . 26 . . . . 3 . . 17 . 25 Slashing . | . . . . . . . . . . . . Piercing . | . . . . . . . . . . . . Sneak Attacks 8 | . 1 . . . . . . . . 7 . Combat Hostiles . | . . . . . . . . . . . . Follow-up Attacks . | . . . . . . . . . . . . Damage Inflicted 16794 | 243 1539 . . 57 2513 3550 556 383 2917 1966 3070 Guns 9802 | 243 571 . . . 2028 992 . 24 2060 1627 2257 Cannons 2507 | . . . . . 34 1221 556 359 . 337 . Explosions 2896 | . 367 . . 57 451 1324 . . 697 . . Melee 1569 | . 601 . . . . . . . 160 . 808 Ramming 20 | . . . . . . 13 . . . 2 5 Kinetic 6945 | 243 273 . . . 1718 925 . . 1145 1584 1057 Thermal 5030 | . 298 . . . 344 1288 556 383 915 380 866 Explosive 2896 | . 367 . . 57 451 1324 . . 697 . . Electromagnetic 334 | . . . . . . . . . . . 334 Impact 1569 | . 601 . . . . . . . 160 . 808 Slashing . | . . . . . . . . . . . . Piercing . | . . . . . . . . . . . . Highest Corruption 20 | . . . . . . 1 1 . . 20 20 Average Corruption 8 | . . . . . . 1 1 . . 20 7 Corruption Purged . | . . . . . . . . . . . . Corruption Blocked . | . . . . . . . . . . . . Effects 125 | . . . . . . 11 8 . . 65 41 Message Errors 23 | . . . . . . 1 1 . . 12 9 Matter Fused 28 | . . . . . . 3 1 . . 12 12 Heat Flow Errors 15 | . . . . . . 1 1 . . 9 4 Energy Discharges 19 | . . . . . . 1 1 . . 17 . Parts Rejected 2 | . . . . . . . . . . . 2 Parts Fused 2 | . . . . . . . . . . 1 1 Data Loss (minor) 16 | . . . . . . 2 3 . . 5 6 Data Loss (major) 7 | . . . . . . 1 1 . . 1 4 Misfires 3 | . . . . . . 2 . . . 1 . Alerts 4 | . . . . . . . . . . 2 2 Weapon Failures 6 | . . . . . . . . . . 5 1 Overload Shots . | . . . . . . . . . . . . Overflow Damage 502 | . 132 . . . . 60 17 . 35 . 258 Projectiles 49 | . . . . . . 32 17 . . . . Explosions 28 | . . . . . . 28 . . . . . Melee 425 | . 132 . . . . . . . 35 . 258 Knockbacks 6 | . 1 . . . . . . . . 4 1 Impact 2 | . 1 . . . . . . . . . 1 Kinetic 4 | . . . . . . . . . . 4 . Secondary . | . . . . . . . . . . . . Self-Inflicted Damage 108 | . . . . . 31 . . . 76 1 . Shots 4 | . . . . . 1 . . . 3 . . Rammed 3 | . . . . . . 2 . . . 1 . Targets Rammed 5 | . . . . . . 2 . . . 1 2 Kicked 2 | . . . . . . . . . . . 2 Crushed . | . . . . . . . . . . . . Highest Temperature 443 | . 190 . 20 . 331 396 443 417 117 402 351 Average Temperature 92 | . 62 . 15 . 86 97 170 150 28 99 89 Received Heat Transfer 4378 | . 429 . . . 540 531 91 105 516 366 1800 Effects 9 | . . . . . 2 1 3 1 . 2 . Shutdowns 3 | . . . . . . 1 2 . . . . Energy Bleed 1 | . . . . . 1 . . . . . . Interference 2 | . . . . . . . . . . 2 . Matter Decay 1 | . . . . . 1 . . . . . . Short Circuit 2 | . . . . . . . 1 1 . . . Siege Activations . | . . . . . . . . . . . . Martial Activations . | . . . . . . . . . . . . Shielding Activations . | . . . . . . . . . . . . Robots Disrupted . | . . . . . . . . . . . . Combat Hostiles . | . . . . . . . . . . . . Robots Corrupted 11 | . 4 . . . . . . . . . 7 Combat Hostiles 10 | . 3 . . . . . . . . . 7 Parts Fried 11 | . 2 . . . . . . . . . 9 Impact Corruptions 16 | . 6 . . . . . . . 2 . 8 Robots Melted 13 | . 1 . . . . 3 . 2 3 2 2 Combat Hostiles 10 | . . . . . . 2 . 2 3 1 2 Parts Melted 54 | . 2 . . . . 11 2 5 9 17 8 Heat Transferred 12922 | . 1110 . . . 814 2511 1061 737 3691 1500 1498 Parts Sabotaged . | . . . . . . . . . . . . Parts Stolen 4 | . . . . . . . 4 . . . . Parts Stripped . | . . . . . . . . . . . . Power Chain Reactions . | . . . . . . . . . . . . Alert | -11 -10 -10 -10 -9 -8 -8 -8 -6 -6 -6 -6 ------- Run | Yrd Mat Min Exi Min Mat Sto Rec Fac Gar Fac Gar Maximum Alert Level 5 | . 1 . . . 1 2 1 2 4 3 5 Low Security (%) 31 | 100 95 100 . 100 73 12 55 24 3 . . Level 1 23 | . 4 . . . 26 62 44 75 29 . . Level 2 10 | . . . . . . 25 . . 22 10 13 Level 3 22 | . . . . . . . . . 21 89 41 Level 4 9 | . . . . . . . . . 21 . 32 Level 5 2 | . . . . . . . . . . . 12 High Security . | . . . . . . . . . . . . Max Security . | . . . . . . . . . . . . Peak Influence 1757 | 10 221 106 . 3 341 538 311 403 1357 1011 1757 Initial 711 | . 3 81 . . . 65 206 333 104 711 657 Average 507 | 1 107 78 . . 132 333 178 292 688 821 1059 Influence Increases 7417 | 45 687 55 . 4 875 1149 441 420 1553 958 1230 Destroy 0b10 Robot/C 3520 | . 360 40 . . 540 720 60 40 800 440 520 Destroy 0b10 Robot/NC 225 | 45 30 . . . 50 40 15 . 5 30 10 Destroy Leader 648 | . 98 10 . . 136 192 . 20 40 122 30 Allied During Kill 229 | . 6 3 . . 18 76 . . 81 45 . Successful Hack 101 | . 24 . . . 25 13 7 . 14 4 14 Select Force Hacks 210 | . 60 . . . . . 150 . . . . Disable Machine 180 | . 45 . . . 45 45 . . 45 . . Anti-Garrison Action 800 | . . . . . . . . . 450 . 350 Destroy Structure 248 | . 19 2 . 4 31 63 3 . 103 17 6 Advance Influence 250 | . . . . . . . . 250 . . . Lose Combat Pursuer 390 | . 45 . . . 30 . . . 15 . 300 Miscellaneous 616 | . . . . . . . 206 110 . 300 . Influence Decreases 5720 | 40 483 198 66 4 720 774 772 470 345 1376 472 Entered New Map 1699 | . 2 128 66 . . 90 324 116 45 646 282 Time Decay 2711 | 40 441 70 . 4 440 534 398 254 . 530 . Search Patrol Dispatched 100 | . . . . . . . . 100 . . . Lost Part 600 | . 40 . . . 70 90 10 . 200 40 150 Lost Ally 460 | . . . . . 60 60 40 . 100 160 40 Purge Threat 150 | . . . . . 150 . . . . . . Squads Dispatched 30 | . 6 . . . 5 7 . 1 . 11 . Investigation 8 | . 3 . . . 2 2 . . . 1 . Extermination 4 | . . . . . . . . . . 4 . Reinforcement 11 | . 3 . . . 1 2 . 1 . 4 . Assault 5 | . . . . . . 3 . . . 2 . Garrison 2 | . . . . . 2 . . . . . . Intercept . | . . . . . . . . . . . . Searches Triggered 1 | . . . . . . . . 1 . . . Construction Impeded . | . . . . . . . . . . . . Haulers Reinforced 1 | . . . . . . . . . . 1 . Active Scanning Responses . | . . . . . . . . . . . . Cargo Convoy Interrupts . | . . . . . . . . . . . . Stealth | -11 -10 -10 -10 -9 -8 -8 -8 -6 -6 -6 -6 --------- Run | Yrd Mat Min Exi Min Mat Sto Rec Fac Gar Fac Gar Distress Signals 14 | . 3 . . 1 3 1 . . . 5 1 Communications Jammed . | . . . . . . . . . . . . Distress Signals . | . . . . . . . . . . . . Times Spotted 259 | . 30 . . 6 38 46 5 7 44 33 50 Peak Tracking Total 9 | . 4 . 9 3 6 6 4 3 6 5 6 Tactical Retreats 21 | . 3 . . . 2 . . . 1 . 15 Traps | -11 -10 -10 -10 -9 -8 -8 -8 -6 -6 -6 -6 ------- Run | Yrd Mat Min Exi Min Mat Sto Rec Fac Gar Fac Gar Traps Triggered 13 | . 1 . . . 1 1 . . 4 2 4 Indirectly . | . . . . . . . . . . . . Trap Hack Attempts . | . . . . . . . . . . . . Triggered . | . . . . . . . . . . . . Disarmed . | . . . . . . . . . . . . Reprogrammed . | . . . . . . . . . . . . Reused . | . . . . . . . . . . . . Traps Extracted . | . . . . . . . . . . . . Installed . | . . . . . . . . . . . . Triggered . | . . . . . . . . . . . . Machines | -11 -10 -10 -10 -9 -8 -8 -8 -6 -6 -6 -6 ---------- Run | Yrd Mat Min Exi Min Mat Sto Rec Fac Gar Fac Gar Machines Disabled 21 | . 3 . 1 . 3 3 . . 10 . 1 Max in Single Turn 2 | . 2 . 1 . 1 1 . . 1 . 1 Garrison Relay 5 | . . . . . . . . . 3 . 2 Phase Generator 1 | . . . . . . . . . . . 1 Machines Repaired . | . . . . . . . . . . . . Machines Dismantled . | . . . . . . . . . . . . Machines Sabotaged . | . . . . . . . . . . . . Overloaded Fab Kills . | . . . . . . . . . . . . Hacking | -11 -10 -10 -10 -9 -8 -8 -8 -6 -6 -6 -6 --------- Run | Yrd Mat Min Exi Min Mat Sto Rec Fac Gar Fac Gar Machines Accessed 43 | . 6 . 2 . 8 4 13 1 3 2 4 Terminals 29 | . 4 . . . 7 4 6 . 3 1 4 Fabricators . | . . . . . . . . . . . . Repair Stations . | . . . . . . . . . . . . Recycling Units 7 | . 2 . . . . . 5 . . . . Scanalyzers 1 | . . . . . 1 . . . . . . Garrison Access 2 | . . . . . . . . 1 . 1 . Total Hacks 98 | . 11 . 5 . 28 8 34 1 3 4 4 Successful 68 | . 9 . 5 . 17 4 25 1 2 3 2 Failed 30 | . 2 . . . 11 4 9 . 1 1 2 Catastrophic 2 | . . . . . . . . . . . 2 Database Lockouts . | . . . . . . . . . . . . Manual 68 | . 11 . 1 . 21 10 22 . . 3 . Terminals 69 | . 9 . . . 25 8 17 . 3 3 4 Fabricators . | . . . . . . . . . . . . Repair Stations . | . . . . . . . . . . . . Recycling Units 8 | . 2 . . . . . 6 . . . . Scanalyzers 3 | . . . . . 3 . . . . . . Garrison Access 2 | . . . . . . . . 1 . 1 . Terminal Hacks 23 | . 1 . 5 . 2 . 11 . 2 . 2 Record 13 | . . . 4 . . . 9 . . . . Open Door 1 | . . . . . . . . . 1 . . Emergency Access Points 2 | . . . . . . . . . 1 . 1 Unreport Threat 1 | . . . . . 1 . . . . . . Locate Traps 1 | . 1 . . . . . . . . . . Hauler Manifests 1 | . . . . . 1 . . . . . . Garrison Registry 1 | . . . . . . . . . . . 1 Proto ID Catalog 1 | . . . 1 . . . . . . . . Release Object 2 | . . . . . . . 2 . . . . Fabricator Hacks . | . . . . . . . . . . . . Repair Station Hacks . | . . . . . . . . . . . . Recycling Unit Hacks . | . . . . . . . . . . . . Scanalyzer 3 | . . . . . 3 . . . . . . Retrieve Study 3 | . . . . . 3 . . . . . . Garrison Access Hacks 2 | . . . . . . . . 1 . 1 . Unlock Access 2 | . . . . . . . . 1 . 1 . Unauthorized Hacks 40 | . 8 . . . 12 4 14 . . 2 . Terminals 33 | . 6 . . . 12 4 9 . . 2 . Assimilate 2 | . 1 . . . 1 . . . . . . Botnet 15 | . 3 . . . 5 2 4 . . 1 . Operators 2 | . . . . . 1 1 . . . . . Skim 14 | . 2 . . . 5 1 5 . . 1 . Fabricators . | . . . . . . . . . . . . Repair Stations . | . . . . . . . . . . . . Recycling Units 7 | . 2 . . . . . 5 . . . . Tunnel 7 | . 2 . . . . . 5 . . . . Scanalyzers . | . . . . . . . . . . . . Garrison Access . | . . . . . . . . . . . . Data Cores Recovered 1 | . . . . . . 1 . . . . . Used 1 | . . . . . . 1 . . . . . Hacking Detections 20 | . 2 . . . 5 4 3 1 2 1 2 Full Trace Events 2 | . . . . . 1 1 . . . . . Feedback Events . | . . . . . . . . . . . . Feedback Blocked . | . . . . . . . . . . . . Robot Schematics Acquired . | . . . . . . . . . . . . Robots Built . | . . . . . . . . . . . . Authchips . | . . . . . . . . . . . . Time . | . . . . . . . . . . . . Total Robot Build Rating . | . . . . . . . . . . . . Part Schematics Acquired . | . . . . . . . . . . . . Parts Built . | . . . . . . . . . . . . Authchips . | . . . . . . . . . . . . Time . | . . . . . . . . . . . . Total Part Build Rating . | . . . . . . . . . . . . Part Studies Acquired 3 | . . . . . 3 . . . . . . Parts Repaired . | . . . . . . . . . . . . Time . | . . . . . . . . . . . . Parts Recycled . | . . . . . . . . . . . . Recycled Matter . | . . . . . . . . . . . . Retrieved Matter . | . . . . . . . . . . . . Retrieved Components . | . . . . . . . . . . . . Parts Scanalyzed . | . . . . . . . . . . . . Part Schematics Acquired . | . . . . . . . . . . . . Parts Damaged . | . . . . . . . . . . . . Bothacking | -11 -10 -10 -10 -9 -8 -8 -8 -6 -6 -6 -6 ------------ Run | Yrd Mat Min Exi Min Mat Sto Rec Fac Gar Fac Gar Used RIF Installer 1 | . . . . . . . . . 1 . . Program Shield 1 | . . . . . . . . . . . 1 Robots Hacked 12 | . . . . . . . . . . 8 4 Non-combat 1 | . . . . . . . . . . 1 . Combat 11 | . . . . . . . . . . 7 4 Robot Hacks Applied 14 | . . . . . . . . . . 10 4 drop_inventory 1 | . . . . . . . . . . 1 . find_garrison 2 | . . . . . . . . . . 2 . amplify_resonance 1 | . . . . . . . . . . . 1 overwrite_iff 2 | . . . . . . . . . . . 2 formatsys_high 8 | . . . . . . . . . . 7 1 Relay Couplers Released 19 | . . . . . . . . . 11 . 8 Machine Destruction 19 | . . . . . . . . . 11 . 8 Attached 5 | . . . . . . . . . . 3 2 Fabnet Peak Effective % . | . . . . . . . . . . . . Robots Rewired . | . . . . . . . . . . . . Allies Hacked 1 | . . . . . . . . . . 1 . Hacks Repelled . | . . . . . . . . . . . . Allies | -11 -10 -10 -10 -9 -8 -8 -8 -6 -6 -6 -6 -------- Run | Yrd Mat Min Exi Min Mat Sto Rec Fac Gar Fac Gar Total Allies 30 | . 1 . . 2 4 3 3 . 7 7 3 Largest Group 4 | . 1 1 . 2 3 2 3 . 4 3 1 Highest-Rated Group 164 | . 90 90 . 45 75 62 54 . 164 87 34 Highest-Rated Ally 90 | . 90 90 . 31 57 46 18 . 46 47 34 Total Orders . | . . . . . . . . . . . . Ally Attacks 256 | . 5 6 . 4 28 45 13 . 66 82 7 Total Damage 6987 | . 241 220 . 61 510 823 500 . 2481 1681 470 Kills 46 | . 3 2 . 2 3 8 4 . 14 10 . Allies Corrupted 1 | . . . . . . . . . . 1 . Allies Melted . | . . . . . . . . . . . . Turrets Deployed 3 | . . . . . . . 1 . 1 1 . X0-1V1 Amusement Gains 263 | . 23 . 60 40 10 10 50 . 10 30 30 Good Acts 61 | . 2 . . 4 7 12 3 3 12 1 17 Bad Acts 44 | . 1 . . . 6 7 3 3 5 9 10 Intel | -11 -10 -10 -10 -9 -8 -8 -8 -6 -6 -6 -6 ------- Run | Yrd Mat Min Exi Min Mat Sto Rec Fac Gar Fac Gar Active Infowar (turns) 1155 | 20 1035 . . . . . . . . 100 . Structural 100 | . . . . . . . . . . 100 . Seismic 1055 | 20 1035 . . . . . . . . . . Robot Analysis Total . | . . . . . . . . . . . . Derelict Logs Recovered 1 | . . . . 1 . . . . . . . Drone Launches . | . . . . . . . . . . . . Drone Recoveries . | . . . . . . . . . . . . Exploration | -11 -10 -10 -10 -9 -8 -8 -8 -6 -6 -6 -6 ------------- Run | Yrd Mat Min Exi Min Mat Sto Rec Fac Gar Fac Gar Turns Passed 12607 | 319 1172 156 498 298 1359 1512 940 555 2139 1497 2162 Spaces Moved 5365 | 152 460 79 247 114 658 574 543 240 858 769 671 Core 16 | 16 . . . . . . . . . . . Treads 2376 | 136 142 . . . 65 482 543 240 700 61 7 Legs 377 | . . . . . . . . . 18 292 67 Wheels 2456 | . 318 79 247 114 593 92 . . . 416 597 Hover . | . . . . . . . . . . . . Flight 140 | . . . . . . . . . 140 . . Fastest Speed 50 | 50 135 200 110 110 105 145 154 154 107 88 100 Average Speed 167 | 150 195 200 193 123 137 197 159 204 188 155 128 Slowest Speed 360 | 200 320 200 200 125 320 220 272 212 360 212 329 Overloaded Moves . | . . . . . . . . . . . . Propulsion Burnouts . | . . . . . . . . . . . . Robots Hopped 1 | . . . . . . . . . 1 . . Potential Cave-ins 4 | . . . . 2 . . . . . 2 . Cave-ins Triggered . | . . . . . . . . . . . . Exploration Rate (%) 53 | 7 93 24 60 31 55 82 89 8 96 25 76 Regions Visited 11 Branch Regions 5 Pre-discovered Areas 10 | . 2 . 1 . 2 . 5 . . . . Known Exits Taken 6 | . . . . 1 1 1 1 1 . 1 . Unknown Exits Taken 4 | 1 1 1 1 . . . . . . . . Scrap Searched . | . . . . . . . . . . . . Spaces Dug 16 | . . . . . . 1 . . . 15 . Terrain Destroyed 188 | . 20 . . 12 35 58 6 . 33 24 . Melee 1 | . . . . . . 1 . . . . . Projectile 44 | . . . . . . 8 6 . 6 24 . AOE 140 | . 20 . . 12 35 49 . . 24 . . Terrain Rammed . | . . . . . . . . . . . . Walls Destroyed . | . . . . . . . . . . . . Machines Disabled . | . . . . . . . . . . . . Actions | -11 -10 -10 -10 -9 -8 -8 -8 -6 -6 -6 -6 --------- Run | Yrd Mat Min Exi Min Mat Sto Rec Fac Gar Fac Gar Total 8001 | 204 612 78 265 267 960 800 590 288 1193 963 1781 Wait 1458 | 9 53 . . 149 127 10 . 25 104 46 935 Move 5354 | 151 459 78 246 113 657 573 542 240 855 769 671 Hop 1 | . . . . . . . . . 1 . . Pick Up 154 | 13 13 . 7 . 24 35 8 1 29 9 15 Fast Attach 21 | . . . . . 9 1 . . 8 3 . Attach 80 | 7 4 . . . 11 15 5 4 19 5 10 Detach 6 | . . . . . . . . 1 2 2 1 Swap 76 | . 10 . 3 2 15 22 1 . 5 8 10 Drop 98 | . 2 . 5 . 20 20 6 7 23 10 5 Fire 630 | 24 45 . 4 3 97 119 28 10 115 90 95 Melee 90 | . 26 . . . . 3 . . 17 19 25 Ram 1 | . . . . . . . . . . 1 . Kick 2 | . . . . . . . . . . . 2 Crush 2 | . . . . . . 2 . . . . . Escape Stasis 27 | . . . . . . . . . 15 . 12 Rewire 1 | . . . . . . . . . . 1 . Trap . | . . . . . . . . . . . . Miscellaneous . | . . . . . . . . . . . . Route ------- -11/Scrapyard -10/Materials (discovered 5 exits: [*Mat x3] / [*Min] / [*Sub]) -10/Mines -10/Exiles -9/Mines (discovered 2 exits: *Mat x2) -8/Materials (discovered 4 exits: *Fac x3 / *Sto) -8/Storage (discovered 2 exits: *Fac / *Rec) -8/Recycling -6/Factory (discovered 7 exits: *Fac x4 / Low x2 / Gar) -6/Garrison (discovered 3 exits: *Fac x3) -6/Factory -6/Garrison (discovered 3 exits: *Fac x3) History --------- Turn | Location | Event 11 | -11/Scrapyard | Discovered new exit (range 16) 320 | -11/Scrapyard | Entered Materials 321 | -10/Materials | Build established: Mutant 446 | -10/Materials | Discovered new exit (range 15) 712 | -10/Materials | Discovered new exit (range 16) 951 | -10/Materials | Discovered new exit (range 16) 1320 | -10/Materials | Discovered new exit (range 16) 1349 | -10/Materials | Discovered new exit (range 5) 1354 | -10/Materials | Prayed at D.C.S.S. Altar Unit 1382 | -10/Materials | Core integrity fell below 50% 1385 | -10/Materials | X0-1V1 sent allied H-61 Shepherd (x1) 1486 | -10/Materials | X0-1V1 mutated your Propulsion slot to Power slot 1492 | -10/Materials | X0-1V1 foreshadows a heat wave 1492 | -10/Materials | Entered Mines 1492 | -10/Mines | Accompanied by 1 ally 1568 | -10/Mines | Deemed a non-threat by the Exiles lab entrance 1568 | -10/Mines | Discovered new exit (range 5) 1648 | -10/Mines | Entered Exiles 1713 | -10/Exiles | Met 8R-AWN 1747 | -10/Exiles | Met EX-HEX 1807 | -10/Exiles | Met EX-BIN 1835 | -10/Exiles | Aligned with FarCom system 1837 | -10/Exiles | Given EX-Vault access code 1883 | -10/Exiles | Opened EX-Vault 1895 | -10/Exiles | Found Deploy-a-Sentry 1898 | -10/Exiles | Found Deploy-a-Sentry 1901 | -10/Exiles | Found Deploy-a-Sentry 1954 | -10/Exiles | Warned to stay clear of 0b10 Research branches 2010 | -10/Exiles | Met EX-DEC 2018 | -10/Exiles | Learned location of Zion (-7) 2122 | -10/Exiles | Attacked by the Exiles 2132 | -10/Exiles | Discovered new exit (range 14) 2146 | -10/Exiles | Left Exiles lab with Deploy-a-Sentry 2146 | -10/Exiles | Entered Mines 2147 | -9/Mines | Assembled infested the area 2152 | -9/Mines | Assisted by a Guerilla fighting off Assembled 2156 | -9/Mines | Learned Materials emergency access door positions 2256 | -9/Mines | X0-1V1 activates XOMVISION 2287 | -9/Mines | Ranged accuracy permanently improved by X0-1V1 (+5%; -50 max core) 2329 | -9/Mines | Identified exit to Materials 2329 | -9/Mines | X0-1V1 revealed exit location to -8/Materials 2379 | -9/Mines | Discovered exit to Materials (range 11) 2444 | -9/Mines | Entered Materials 2444 | -8/Materials | Accompanied by 2 allies 2444 | -8/Materials | Evolved 4 slots: Propulsion x3, Utility x1 2449 | -8/Materials | Led the pair of lost Derelicts to an unsafe place 2706 | -8/Materials | Discovered new exit (range 9) 2879 | -8/Materials | Identified exit to Factory 2879 | -8/Materials | X0-1V1 revealed exit location to -7/Factory 3061 | -8/Materials | X0-1V1 redirected Transport squads to designated parking area 3119 | -8/Materials | Garrison activated, responded to threat 3141 | -8/Materials | Energy capacity permanently improved by X0-1V1 (+300; -150 max core) 3187 | -8/Materials | X0-1V1 sent allied Chaos Knight (x1) 3214 | -8/Materials | Lost 3 parts (1p1n1u) 3317 | -8/Materials | X0-1V1 sent you into danger 3387 | -8/Materials | Garrison activated, responded to threat 3430 | -8/Materials | Core integrity restored by X0-1V1 (+70) 3502 | -8/Materials | X0-1V1 sent hostile S-10 Pest (x4) 3549 | -8/Materials | Discovered exit to Factory (range 16) 3602 | -8/Materials | Learned Factory emergency access door positions 3633 | -8/Materials | Learned 4 Recycling zone layouts 3665 | -8/Materials | Learned Factory machine intel 3667 | -8/Materials | Identified exit to Storage 3668 | -8/Materials | Learned 4 Factory zone layouts 3671 | -8/Materials | Learned location of 3 exits from Factory 3792 | -8/Materials | X0-1V1 sent you to a vault 3803 | -8/Materials | Entered Storage 3803 | -8/Storage | Accompanied by 3 allies 3824 | -8/Storage | Build established: Scavenger-Mutant 3864 | -8/Storage | Lost 3 allies 3882 | -8/Storage | Lost 3 parts (1p1n1w) 3922 | -8/Storage | Met a pair of Derelict thieves 4016 | -8/Storage | Destroyed 9 combat bots 4110 | -8/Storage | Melee accuracy permanently improved by X0-1V1 (+6%; -60 max core) 4198 | -8/Storage | X0-1V1 activates XOMVISION 4224 | -8/Storage | X0-1V1 sent hostile Y-45 Defender (x1) 4392 | -8/Storage | X0-1V1 mutated your Weapon slot to Propulsion slot 4399 | -8/Storage | Discovered exit to Factory (range 15) 4429 | -8/Storage | X0-1V1 upgraded ally (x1) 4839 | -8/Storage | X0-1V1 activates XOMVISION 4875 | -8/Storage | Core integrity restored by X0-1V1 (+75) 5003 | -8/Storage | First assault squad dispatched 5100 | -8/Storage | Core integrity restored by X0-1V1 (+75) 5170 | -8/Storage | Identified exit to Recycling 5170 | -8/Storage | X0-1V1 revealed exit location to -8/Recycling 5307 | -8/Storage | Used back door to open Recycling access 5315 | -8/Storage | Entered Recycling 5316 | -8/Recycling | Identified exit to Factory 5438 | -8/Recycling | X0-1V1 mutated your Utility slot to Propulsion slot 5448 | -8/Recycling | Adv. Treads reconfigured into Item Mimic 5742 | -8/Recycling | Build established: Mutant 6038 | -8/Recycling | X0-1V1 added 0b10 threat records associated with you (considerable) 6126 | -8/Recycling | Scanned before Scraplab entrance 6149 | -8/Recycling | Entered Scraplab 6164 | -8/Recycling | Angered Scraplab inhabitants 6165 | -8/Recycling | DAS Turret deployed 6165 | -8/Recycling | Found Prototype Device 6168 | -8/Recycling | X0-1V1 sent allied L-31 Rogue (x3) 6185 | -8/Recycling | Learned Storage emergency access door positions 6216 | -8/Recycling | Lost 3 allies 6255 | -8/Recycling | Entered Factory 6255 | -6/Factory | Evolved 4 slots: Utility x3, Weapon x1 6255 | -6/Factory | Identified Scrap Engine 6256 | -6/Factory | Identified exit to Factory 6257 | -6/Factory | Identified exit to Lower Caves 6260 | -6/Factory | Loaded intel: 288 machine locations 6353 | -6/Factory | X0-1V1 added 0b10 threat records associated with you (minor) 6550 | -6/Factory | Build established: Scavenger-Mutant 6605 | -6/Factory | Search patrols dispatched 6625 | -6/Factory | Discovered exit to Factory (range 7) 6774 | -6/Factory | X0-1V1 whisked you away to safety 6810 | -6/Factory | Identified exit to Garrison 6810 | -6/Factory | Entered Garrison 6830 | -6/Garrison | Triggered checkpoint 6849 | -6/Garrison | Weapon slot count temporarily expanded by X0-1V1 (+2) 6915 | -6/Garrison | Lost 6 parts (4n1u1w) 7137 | -6/Garrison | X0-1V1 turns hostiles against one another 7160 | -6/Garrison | Lost 4 parts (1p2n1w) 7201 | -6/Garrison | X0-1V1 mutated your Propulsion slot to Weapon slot 7227 | -6/Garrison | Heavy support dispatched to Factory 7261 | -6/Garrison | Core integrity restored by X0-1V1 (+147) 7270 | -6/Garrison | Triggered checkpoint 7300 | -6/Garrison | X0-1V1 sent allied H-66 Slayer (x4) 7310 | -6/Garrison | Spotted Executioner 7310 | -6/Garrison | Spotted Executioner 7323 | -6/Garrison | DAS Turret deployed 7334 | -6/Garrison | Allies destroyed Executioner 7350 | -6/Garrison | Allies destroyed Executioner 7364 | -6/Garrison | Lost 6 parts (1p2n1u2w) 7376 | -6/Garrison | Lost 3 allies 7406 | -6/Garrison | Discovered new exit (range 12) 7516 | -6/Garrison | Triggered checkpoint 7556 | -6/Garrison | Triggered checkpoint 7602 | -6/Garrison | Triggered checkpoint 7658 | -6/Garrison | Triggered checkpoint 7681 | -6/Garrison | Garrison Relay disabled 7744 | -6/Garrison | Heavy support dispatched to Factory 7765 | -6/Garrison | Core integrity fell below 50% 7771 | -6/Garrison | Discovered new exit (range 13) 7833 | -6/Garrison | Rescued a captive Derelict 7835 | -6/Garrison | Rescued a captive Derelict 8095 | -6/Garrison | Garrison Relay disabled 8126 | -6/Garrison | Triggered checkpoint 8171 | -6/Garrison | Installed Relay Interface Framework 8196 | -6/Garrison | Discovered new exit (range 15) 8280 | -6/Garrison | Build established: Tank 8386 | -6/Garrison | Triggered checkpoint 8417 | -6/Garrison | Garrison Relay disabled 8454 | -6/Garrison | Heavy support dispatched to Factory 8582 | -6/Garrison | Found Relay Coupler [Proto] 8587 | -6/Garrison | Found Relay Coupler [Proto] 8813 | -6/Garrison | Build established: Scavenger-Tank 8841 | -6/Garrison | H-XX Assembler disabled 8849 | -6/Garrison | X0-1V1 rewrote 5S-INR(b) IFF filter 8949 | -6/Garrison | Entered Factory 8953 | -6/Factory | X0-1V1 added 0b10 threat records associated with you (major) 9132 | -6/Factory | System corruption reached 10% 9222 | -6/Factory | Build established: Tank 9641 | -6/Factory | Build established: Bothacker-Construct 9649 | -6/Factory | First assault squad dispatched 9691 | -6/Factory | Lost 3 allies 9851 | -6/Factory | X0-1V1 mutated your Weapon slot to Utility slot 9879 | -6/Factory | X0-1V1 redirected Transport squads to designated parking area 9979 | -6/Factory | Spotted B-75 Beast 9983 | -6/Factory | DAS Turret deployed 10004 | -6/Factory | Allies destroyed B-75 Beast 10082 | -6/Factory | Core integrity fell below 20% 10225 | -6/Factory | Weapon slot count temporarily expanded by X0-1V1 (+2) 10316 | -6/Factory | X0-1V1 tapped a No Entrance sign 10446 | -6/Factory | Identified exit to Garrison 10446 | -6/Factory | Entered Garrison 10628 | -6/Garrison | Expanded RIF knowledge: Program Shield 10801 | -6/Garrison | X0-1V1 revealed exit location to -5/Factory 11068 | -6/Garrison | Build established: Construct 11145 | -6/Garrison | X0-1V1 activates XOMVISION 11292 | -6/Garrison | X0-1V1 destroyed Phase Generator 11292 | -6/Garrison | Phase Generator disabled 11328 | -6/Garrison | X0-1V1 revealed exit location to -5/Factory 11486 | -6/Garrison | X0-1V1 activates XOMVISION 11513 | -6/Garrison | Core integrity restored by X0-1V1 (+171) 11643 | -6/Garrison | Triggered checkpoint 11743 | -6/Garrison | Garrison Relay disabled 11992 | -6/Garrison | X0-1V1 sent hostile Fireman (x3) 12066 | -6/Garrison | Lost 3 parts (1p1n1u) 12097 | -6/Garrison | X0-1V1 rescued you from certain death 12141 | -6/Garrison | Lost 3 parts (1p1n1u) 12174 | -6/Garrison | Triggered checkpoint 12177 | -6/Garrison | Garrison Relay disabled 12338 | -6/Garrison | Triggered checkpoint 12348 | -6/Garrison | X0-1V1 activates XOMVISION 12444 | -6/Garrison | Discovered exit to Factory (range 69) 12444 | -6/Garrison | Discovered exit to Factory (range 54) 12444 | -6/Garrison | Discovered exit to Factory (range 29) 12536 | -6/Garrison | Build established: Bothacker-Mutant 12538 | -6/Garrison | Spotted B-75 Beast 12538 | -6/Garrison | X0-1V1 sent you into danger 12608 | -6/Garrison | Destroyed by Y-54 Guardian with Flak Gun Last Messages --------------- 12588_ X0-1V1: "And it's a trip and a fumble!" 12588_ Adv. Heat Sink tossed aside. 12588_ Y-54 Guardian destroyed. 12589_ Dropped KE Penetrator. 12590_ Arm. Scrap Engine consumes KE Penetrator. 12590_ System corrupted: Matter fused (-5). 12592_ Acquired 41 matter. 12594_ Acquired 25 matter. 12597_ Arm. Scrap Engine consumes Flak Gun. 12602_ Lgt. Treads+ destroyed. 12605_ Carbon-Gravmag Exoskeleton destroyed. 12605_ Carbon-Gravmag Exoskeleton core remains intact and functional. 12606_ System corrupted: Component data lost. 12608_ Y-54 Guardian suffers critical hit (Burn). 12608_ Nuclear-Deuterium Core destroyed. 12608_ Arm. Scrap Engine damaged due to network destabilization (-5). 12608_ X0-1V1 cackles wildly! Map ----- +----------------------------------------------------+ | ???????????????????????????????# | | ???????????????????????????????# | | ?????????????????????###???????# | | ?????????????????????# ##??????# | | ????###??????????????# #??????# | | ??### ###????????????## #??????# | | ??#] !#?###?###?????# #??????# | | ??#] !#?# #?# #?????# #??????# | | ?##] !### ### #######+######## | | ?#! ^+ ^+ | | ?#! +^ + | | ?##! ]### ### ######## ###### | | ??#! ]#?# #?#Y#??????# #????# | | ??#! ]#?###?###??????# #????# | | ??### ###??????????????# ###### | | ????# #????????????????# + | | ????# #????????????????# + | | ????#%#???????????????## ###### | | ????# #################! !#???# | | ????# ! !#???# | | ????# #################! !#???# | | ????#Y###?##??????????### ##???# | | ??### ## #????????????# #????# | | ??# #????????????# #????# | | ??# #????????????# #????# | | ?## @ #????????????# #????# | | ?#T ###????????????# #????# | | ?##""#####??????????????# ###### | | ??# #???????????????# | | ??# #???????????????######## | | ??#######??????????????????????# | | ???????????????????????????????# | | ???????????????????????????????? | | ???????????????????????????????? | | ???????????????????????????????? | | ???????????????????????????????? | | ???????????????????????????????? | | ???????????????????????????????? | | ???????????????????????????????? | | ???????????????????????????????? | | ???????????????????????????????? | | ???????????????????????????????? | | ???????????????????????????????? | | ???????????????????????????????? | | ????????????????????????######## | | ????????????????????????#"# | | ????????????????????????#"! | | ????????????????????????# ! ### | | ????????????????????????#"! #?? | | ????????????????????????#"# #?? | +----------------------------------------------------+ Best States ------------- Heat Dissipation 56 Energy Generation 40 Energy Capacity 2060 Matter Stores 1000 Matter Capacity 1000 Sight Range 21 Terrain Scan Density 10 Armor Coverage 225 Evasion (%) 50 Recoil Reduction 6 Relay Coupler Types 1 Relay Coupler Value 99 Item Schematics ----------------- None Robot Schematics ------------------ None Fabricated ------------ Nothing Repaired ---------- Nothing Studied --------- Hvy. Assault Rifle | -8/Materials | Hacked Lgt. Treads | -8/Materials | Hacked Wheel | -8/Materials | Hacked Alien Tech Used ----------------- None Achievements -------------- Well-fed Force Field Challenges ------------ None Game ------ Seed ThermalBarrageReconstructor Manual? 0 Play Time 01:47:26 Cumulative 206.2 hours Start 2026.07.16 @ 18:47:44 End 2026.07.18 @ 14:12:00 Sessions 5 Manual Loads 0 Difficulty Rogue Special Mode None Game No. 289 Rogue 289 Adventurer 0 Explorer 0 Win Type - Total 3 Types 2/0/0/1/0/0/0/0/0/0 Lore% 74 Gallery% 69 Achievement% 56 Wizard Run 0 Options --------- Layout 1 ASCII 0 Keyboard 0 Movement Mouse Keybinds 0 Fullscreen 1 Font 24/Smallcaps Map View 50x35 Zoom Use 0% Tactical HUD 1 Map Filters NONE Filters NONE Steam 1 RUN: de72a1a7-fe37-490e-9eb2-346be11d8ef8